fUST/lending_fUST_20241213
["ID","MTS","AMOUNT","RATE_DAILY","PERIOD"]
[345227080,1734102635732,-500.0,0.00027397,7]
[345227082,1734102635741,-500.0,0.00027397,7]
[345227085,1734102635751,-500.0,0.00027397,7]
[345227087,1734102635762,-500.0,0.00027397,7]
[345227089,1734102635771,-1435.7,0.00027397,7]
[345227091,1734102635781,-500.0,0.00027397,7]
[345227093,1734102635790,-500.0,0.00027397,7]
[345227095,1734102635799,-500.0,0.00027397,7]
[345227097,1734102635809,-500.0,0.00027397,7]
[345227099,1734102635819,-500.0,0.00027397,7]
[345227101,1734102635828,-514.88,0.00027397,7]
[345227103,1734102635838,-500.0,0.00027397,7]
[345227105,1734102635847,-500.0,0.00027397,7]
[345227107,1734102635857,-500.0,0.00027397,7]
[345227109,1734102635866,-510.41303603,0.00027397,7]
[345227111,1734102635875,-500.0,0.00027397,7]
[345227112,1734102635885,-500.0,0.00027397,7]
[345227115,1734102635894,-500.0,0.00027397,7]
[345227117,1734102635905,-992.56,0.00027397,7]
[345227119,1734102635914,-500.0,0.00027397,7]
[345227120,1734102635923,-500.0,0.00027397,7]
[345227123,1734102635933,-500.0,0.00027397,7]
[345227125,1734102635944,-1107.88,0.00027397,7]
[345227127,1734102635955,-500.0,0.00027397,7]
[345227128,1734102635963,-654.67,0.00027397,7]
[345227130,1734102635975,-500.0,0.00027397,7]
[345227132,1734102635986,-500.0,0.00027397,7]
[345227134,1734102635996,-500.0,0.00027397,7]
[345227136,1734102636004,-500.0,0.00027397,7]
[345227138,1734102636013,-500.0,0.00027397,7]
[345227140,1734102636023,-1028.49,0.00027397,7]
[345227142,1734102636034,-500.0,0.00027397,7]
[345227144,1734102636043,-500.0,0.00027397,7]
[345227146,1734102636054,-500.0,0.00027397,7]
[345227148,1734102636063,-348.03,0.000274,2]
[345227150,1734102636072,-2102.67600726,0.00027571,2]
[345227151,1734102636082,-500.0,0.000276,24]
[345227153,1734102636092,-501.70134345,0.0002767,7]
[345227155,1734102636102,-547.99769499,0.0002767,2]
[345227157,1734102636111,-287.55065369,0.0002767,2]
[345227159,1734102636121,-500.0,0.0002767,2]
[345227161,1734102636131,-349.74191095,0.0002767,2]
[345227162,1734102636140,-500.0,0.00027671,7]
[345227164,1734102636150,-607.11,0.00027671,7]
[345227166,1734102636160,-500.0,0.00027671,7]
[345227167,1734102636169,-500.0,0.00027671,7]
[345227168,1734102636178,-500.0,0.00027671,7]
[345227169,1734102636188,-524.06756737,0.00027671,7]
[345227170,1734102636199,-248.74,0.00027671,7]
[345227171,1734102636209,-500.0,0.00027671,7]
[345227172,1734102636222,-500.0,0.00027671,7]
[345227173,1734102636231,-500.0,0.00027671,7]
[345227174,1734102636241,-500.0,0.00027671,7]
[345227175,1734102636250,-500.0,0.00027671,7]
[345227176,1734102636260,-249.44,0.00027671,7]
[345227178,1734102636270,-500.0,0.00027671,7]
[345227180,1734102636280,-541.89,0.00027671,7]
[345227181,1734102636290,-500.0,0.00027671,7]
[345227182,1734102636299,-500.0,0.00027671,7]
[345227183,1734102636309,-500.0,0.00027671,7]
[345227184,1734102636320,-296.37,0.00027671,7]
[345227186,1734102636330,-500.0,0.00027671,7]
[345227188,1734102636340,-313.75,0.00027671,7]
[345227189,1734102636349,-391.72,0.00027671,7]
[345227190,1734102636359,-292.87,0.00027671,7]
[345227191,1734102636368,-280.75,0.00027671,7]
[345227192,1734102636377,-500.0,0.00027671,7]
[345227193,1734102636387,-416.66,0.00027671,7]
[345227194,1734102636398,-633.2,0.00027671,7]
[345227195,1734102636407,-500.0,0.00027671,7]
[345227196,1734102636417,-500.0,0.00027671,7]
[345227197,1734102636426,-500.0,0.00027671,7]
[345227198,1734102636435,-500.0,0.00027671,7]
[345227199,1734102636445,-2273.9,0.00027671,7]
[345227200,1734102636455,-500.0,0.00027671,7]
[345227201,1734102636468,-500.0,0.00027671,7]
[345227202,1734102636477,-500.0,0.00027671,7]
[345227203,1734102636485,-500.0,0.00027671,7]
[345227204,1734102636494,-500.0,0.00027671,7]
[345227205,1734102636503,-429.54,0.00027671,7]
[345227206,1734102636511,-810.48,0.00027671,7]
[345227207,1734102636520,-500.0,0.00027671,7]
[345227208,1734102636529,-500.0,0.00027671,7]
[345227209,1734102636538,-500.0,0.00027671,7]
[345227210,1734102636548,-544.07,0.00027671,7]
[345227211,1734102636557,-381.74,0.00027671,7]
[345227212,1734102636566,-262.22466353,0.00027671,7]
[345227213,1734102636575,-13700.35,0.00027671,5]
[345227214,1734102636584,-500.0,0.00027671,7]
[345227215,1734102636593,-500.0,0.00027671,7]
[345227216,1734102636602,-500.0,0.00027671,7]
[345227217,1734102636611,-311.78,0.00027671,7]
[345227218,1734102636622,-500.0,0.00027671,7]
[345227219,1734102636631,-441.50245488,0.00027671,7]
[345227220,1734102636641,-614.5653309,0.00027671,7]
[345227221,1734102636651,-358.03656177,0.00027671,7]
[345227222,1734102636660,-1173.07,0.00027671,7]
[345227223,1734102636669,-500.0,0.00027671,7]
[345227224,1734102636678,-282.37006343,0.00027671,7]
[345227225,1734102636687,-1200.57,0.00027671,7]
[345227226,1734102636696,-500.0,0.00027671,7]
[345227227,1734102636707,-500.0,0.00027671,7]
[345227228,1734102636719,-500.0,0.00027671,7]
[345227229,1734102636728,-500.0,0.00027671,7]
[345227230,1734102636738,-500.0,0.00027671,7]
[345227231,1734102636747,-500.0,0.00027671,7]
[345227232,1734102636756,-500.0,0.00027671,7]
[345227233,1734102636766,-1435.7,0.00027671,7]
[345227234,1734102636776,-500.0,0.00027671,7]
[345227235,1734102636786,-500.0,0.00027671,7]
[345227236,1734102636795,-500.0,0.00027671,7]
[345227237,1734102636804,-500.0,0.00027671,7]
[345227238,1734102636814,-500.0,0.00027671,7]
[345227239,1734102636823,-514.88,0.00027671,7]
[345227240,1734102636834,-500.0,0.00027671,7]
[345227241,1734102636843,-500.0,0.00027671,7]
[345227242,1734102636852,-500.0,0.00027671,7]
[345227243,1734102636861,-500.0,0.00027671,7]
[345227244,1734102636870,-500.0,0.00027671,7]
[345227245,1734102636880,-992.56,0.00027671,7]
[345227246,1734102636888,-165.61,0.00027671,7]
[345227247,1734102636896,-500.0,0.00027671,7]
[345227248,1734102636904,-500.0,0.00027671,7]
[345227249,1734102636911,-1107.88,0.00027671,7]
[345227250,1734102636919,-500.0,0.00027671,7]
[345227251,1734102636928,-654.67,0.00027671,7]
[345227252,1734102636938,-381.68,0.00027671,7]
[345227253,1734102636951,-500.0,0.00027671,7]
[345227254,1734102636961,-500.0,0.00027671,7]
[345227255,1734102636972,-500.0,0.00027671,7]
[345227256,1734102636981,-1028.49,0.00027671,7]
[345227257,1734102636992,-500.0,0.00027671,7]
[345227258,1734102637001,-500.0,0.00027671,7]
[345227259,1734102637010,-2102.67600726,0.00027845,2]
[345227260,1734102637020,-500.0,0.00027945,7]
[345227261,1734102637031,-500.0,0.00027945,7]
[345227262,1734102637040,-500.0,0.00027945,7]
[345227263,1734102637050,-500.0,0.00027945,7]
[345227264,1734102637060,-500.0,0.00027945,7]
[345227265,1734102637069,-500.0,0.00027945,7]
[345227266,1734102637079,-500.0,0.00027945,7]
[345227267,1734102637088,-500.0,0.00027945,7]
[345227268,1734102637098,-234.62273648,0.00027945,7]
[345227269,1734102637107,-500.0,0.00027945,7]
[345227270,1734102637118,-541.89,0.00027945,7]
[345227271,1734102637127,-500.0,0.00027945,7]
[345227272,1734102637137,-500.0,0.00027945,7]
[345227273,1734102637146,-622.37984051,0.00027945,7]
[345227274,1734102637155,-250.9709,0.00027945,7]
[345227275,1734102637165,-500.0,0.00027945,7]
[345227276,1734102637174,-151.0,0.00027945,7]
[345227277,1734102637184,-151.0,0.00027945,7]
[345227278,1734102637194,-500.0,0.00027945,7]
[345227279,1734102637204,-633.2,0.00027945,7]
[345227280,1734102637213,-500.0,0.00027945,7]
[345227281,1734102637225,-500.0,0.00027945,7]
[345227282,1734102637235,-500.0,0.00027945,7]
[345227283,1734102637244,-500.0,0.00027945,7]
[345227284,1734102637254,-2273.9,0.00027945,7]
[345227285,1734102637263,-500.0,0.00027945,7]
[345227286,1734102637274,-500.0,0.00027945,7]
[345227287,1734102637283,-500.0,0.00027945,7]
[345227288,1734102637292,-500.0,0.00027945,7]
[345227289,1734102637301,-500.0,0.00027945,7]
[345227290,1734102637311,-810.48,0.00027945,7]
[345227291,1734102637320,-500.0,0.00027945,7]
[345227292,1734102637329,-500.0,0.00027945,7]
[345227293,1734102637339,-500.0,0.00027945,7]
[345227294,1734102637349,-544.07,0.00027945,7]
[345227295,1734102637358,-13700.35,0.00027945,5]
[345227296,1734102637367,-500.0,0.00027945,7]
[345227297,1734102637377,-500.0,0.00027945,7]
[345227298,1734102637387,-500.0,0.00027945,7]
[345227299,1734102637396,-500.0,0.00027945,7]
[345227300,1734102637405,-1173.07,0.00027945,7]
[345227301,1734102637415,-500.0,0.00027945,7]
[345227302,1734102637425,-500.0,0.00027945,7]
[345227303,1734102637435,-1200.57,0.00027945,7]
[345227304,1734102637444,-500.0,0.00027945,7]
[345227305,1734102637454,-500.0,0.00027945,7]
[345227306,1734102637464,-500.0,0.00027945,7]
[345227307,1734102637475,-500.0,0.00027945,7]
[345227308,1734102637484,-500.0,0.00027945,7]
[345227309,1734102637494,-500.0,0.00027945,7]
[345227310,1734102637504,-1435.7,0.00027945,7]
[345227311,1734102637513,-500.0,0.00027945,7]
[345227312,1734102637523,-500.0,0.00027945,7]
[345227313,1734102637532,-500.0,0.00027945,7]
[345227314,1734102637542,-500.0,0.00027945,7]
[345227315,1734102637552,-500.0,0.00027945,7]
[345227316,1734102637561,-514.88,0.00027945,7]
[345227317,1734102637570,-500.0,0.00027945,7]
[345227318,1734102637580,-500.0,0.00027945,7]
[345227319,1734102637589,-500.0,0.00027945,7]
[345227320,1734102637598,-500.0,0.00027945,7]
[345227321,1734102637609,-500.0,0.00027945,7]
[345227322,1734102637619,-992.56,0.00027945,7]
[345227323,1734102637628,-500.0,0.00027945,7]
[345227324,1734102637638,-500.0,0.00027945,7]
[345227325,1734102637647,-1107.88,0.00027945,7]
[345227326,1734102637657,-546.21248858,0.00027945,7]
[345227327,1734102637667,-654.67,0.00027945,7]
[345227328,1734102637676,-500.0,0.00027945,7]
[345227329,1734102637685,-500.0,0.00027945,7]
[345227330,1734102637695,-500.0,0.00027945,7]
[345227331,1734102637705,-1028.49,0.00027945,7]
[345227332,1734102637716,-500.0,0.00027945,7]
[345227333,1734102637727,-500.0,0.00027945,7]
[345227334,1734102637736,-2102.67600726,0.00028119,2]
[345227335,1734102637746,-929.0,0.000282,2]
[345227336,1734102637755,-500.0,0.00028219,7]
[345227337,1734102637765,-500.0,0.00028219,7]
[345227338,1734102637774,-500.0,0.00028219,7]
[345227339,1734102637784,-500.0,0.00028219,7]
[345227340,1734102637794,-487.85050961,0.00028219,7]
[345227341,1734102637803,-500.0,0.00028219,7]
[345227342,1734102637813,-500.0,0.00028219,7]
[345227343,1734102637822,-500.0,0.00028219,7]
[345227344,1734102637833,-500.0,0.00028219,7]
[345227345,1734102637957,-541.89,0.00028219,7]
[345227346,1734102637969,-500.0,0.00028219,7]
[345227347,1734102637981,-460.33697889,0.00028219,7]
[345227348,1734102637991,-523.64,0.00028219,7]
[345227349,1734102638000,-500.0,0.00028219,7]
[345227350,1734102638010,-633.2,0.00028219,7]
[345227351,1734102638019,-500.0,0.00028219,7]
[345227352,1734102638028,-151.0,0.00028219,7]
[345227353,1734102638038,-500.0,0.00028219,7]
[345227354,1734102638048,-500.0,0.00028219,7]
[345227355,1734102638058,-500.0,0.00028219,7]
[345227356,1734102638068,-2273.9,0.00028219,7]
[345227357,1734102638077,-500.0,0.00028219,7]
[345227358,1734102638087,-500.0,0.00028219,7]
[345227359,1734102638096,-496.11662483,0.00028219,7]
[345227360,1734102638106,-500.0,0.00028219,7]
[345227361,1734102638115,-289.97493169,0.00028219,7]
[345227362,1734102638125,-810.48,0.00028219,7]
[345227364,1734102638134,-500.0,0.00028219,7]
[345227365,1734102638144,-500.0,0.00028219,7]
[345227367,1734102638154,-500.0,0.00028219,7]
[345227369,1734102638163,-544.07,0.00028219,7]
[345227372,1734102638173,-13700.35,0.00028219,5]
[345227374,1734102638183,-500.0,0.00028219,7]
[345227375,1734102638193,-500.0,0.00028219,7]
[345227376,1734102638203,-293.803158,0.00028219,7]
[345227378,1734102638212,-500.0,0.00028219,7]
[345227379,1734102638224,-293.803158,0.00028219,7]
[345227380,1734102638234,-500.0,0.00028219,7]
[345227381,1734102638243,-1173.07,0.00028219,7]
[345227382,1734102638252,-500.0,0.00028219,7]
[345227383,1734102638262,-500.0,0.00028219,7]
[345227384,1734102638271,-1200.57,0.00028219,7]
[345227385,1734102638281,-500.0,0.00028219,7]
[345227386,1734102638292,-500.0,0.00028219,7]
[345227387,1734102638301,-500.0,0.00028219,7]
[345227388,1734102638311,-500.0,0.00028219,7]
[345227389,1734102638320,-500.0,0.00028219,7]
[345227390,1734102638331,-237.30146919,0.00028219,7]
[345227391,1734102638341,-214.49522498,0.00028219,7]
[345227392,1734102638351,-1435.7,0.00028219,7]
[345227393,1734102638360,-500.0,0.00028219,7]
[345227394,1734102638371,-500.0,0.00028219,7]
[345227395,1734102638380,-500.0,0.00028219,7]
[345227396,1734102638390,-500.0,0.00028219,7]
[345227397,1734102638399,-500.0,0.00028219,7]
[345227398,1734102638409,-514.88,0.00028219,7]
[345227399,1734102638419,-500.0,0.00028219,7]
[345227400,1734102638429,-151.0,0.00028219,7]
[345227401,1734102638438,-500.0,0.00028219,7]
[345227402,1734102638448,-500.0,0.00028219,7]
[345227403,1734102638457,-500.0,0.00028219,7]
[345227404,1734102638468,-339.5650801,0.00028219,7]
[345227405,1734102638478,-992.56,0.00028219,7]
[345227406,1734102638487,-500.0,0.00028219,7]
[345227407,1734102638497,-500.0,0.00028219,7]
[345227408,1734102638506,-1107.88,0.00028219,7]
[345227409,1734102638515,-654.67,0.00028219,7]
[345227410,1734102638525,-500.0,0.00028219,7]
[345227411,1734102638535,-151.0,0.00028219,7]
[345227412,1734102638543,-500.0,0.00028219,7]
[345227413,1734102638553,-500.0,0.00028219,7]
[345227414,1734102638563,-1028.49,0.00028219,7]
[345227415,1734102638573,-500.0,0.00028219,7]
[345227417,1734102638583,-500.0,0.00028219,7]
[345227419,1734102638593,-2102.67600726,0.00028393,2]
[345227421,1734102638603,-369.12,0.000284,2]
[345227422,1734102638613,-160.0,0.00028492,10]
[345227423,1734102638623,-500.0,0.00028493,7]
[345227424,1734102638633,-500.0,0.00028493,7]
[345227425,1734102638642,-500.0,0.00028493,7]
[345227427,1734102638651,-500.0,0.00028493,7]
[345227428,1734102638661,-500.0,0.00028493,7]
[345227429,1734102638670,-500.0,0.00028493,7]
[345227430,1734102638680,-500.0,0.00028493,7]
[345227431,1734102638690,-500.0,0.00028493,7]
[345227432,1734102638699,-541.89,0.00028493,7]
[345227433,1734102638708,-616.69855589,0.00028493,7]
[345227434,1734102638720,-151.0,0.00028493,7]
[345227436,1734102638729,-151.0,0.00028493,7]
[345227438,1734102638738,-500.0,0.00028493,7]
[345227440,1734102638747,-633.2,0.00028493,7]
[345227441,1734102638760,-500.0,0.00028493,7]
[345227442,1734102638769,-151.0,0.00028493,7]
[345227443,1734102638779,-500.0,0.00028493,7]
[345227444,1734102638789,-500.0,0.00028493,7]
[345227445,1734102638798,-500.0,0.00028493,7]
[345227446,1734102638818,-2273.9,0.00028493,7]
[345227448,1734102638828,-500.0,0.00028493,7]
[345227450,1734102638838,-500.0,0.00028493,7]
[345227451,1734102638848,-500.0,0.00028493,7]
[345227452,1734102638858,-810.48,0.00028493,7]
[345227453,1734102638867,-500.0,0.00028493,7]
[345227454,1734102638877,-500.0,0.00028493,7]
[345227455,1734102638887,-500.0,0.00028493,7]
[345227456,1734102638896,-544.07,0.00028493,7]
[345227457,1734102638905,-13700.35,0.00028493,5]
[345227458,1734102638915,-500.0,0.00028493,7]
[345227459,1734102638924,-500.0,0.00028493,7]
[345227460,1734102638933,-500.0,0.00028493,7]
[345227461,1734102638945,-293.803158,0.00028493,7]
[345227462,1734102638955,-293.803158,0.00028493,7]
[345227463,1734102638964,-500.0,0.00028493,7]
[345227464,1734102638976,-1173.07,0.00028493,7]
[345227465,1734102638987,-500.0,0.00028493,7]
[345227466,1734102638997,-500.0,0.00028493,7]
[345227467,1734102639006,-1200.57,0.00028493,7]
[345227468,1734102639015,-500.0,0.00028493,7]
[345227469,1734102639028,-500.0,0.00028493,7]
[345227470,1734102639037,-500.0,0.00028493,7]
[345227471,1734102639046,-500.0,0.00028493,7]
[345227472,1734102639057,-500.0,0.00028493,7]
[345227473,1734102639066,-1435.7,0.00028493,7]
[345227474,1734102639075,-500.0,0.00028493,7]
[345227475,1734102639085,-500.0,0.00028493,7]
[345227476,1734102639094,-500.0,0.00028493,7]
[345227477,1734102639103,-500.0,0.00028493,7]
[345227478,1734102639112,-562.44170736,0.00028493,7]
[345227479,1734102639121,-514.88,0.00028493,7]
[345227480,1734102639130,-500.0,0.00028493,7]
[345227481,1734102639139,-151.0,0.00028493,7]
[345227482,1734102639149,-500.0,0.00028493,7]
[345227483,1734102639158,-500.0,0.00028493,7]
[345227484,1734102639167,-500.0,0.00028493,7]
[345227485,1734102639176,-992.56,0.00028493,7]
[345227486,1734102639186,-500.0,0.00028493,7]
[345227487,1734102639195,-500.0,0.00028493,7]
[345227488,1734102639204,-1107.88,0.00028493,7]
[345227489,1734102639213,-654.67,0.00028493,7]
[345227490,1734102639224,-500.0,0.00028493,7]
[345227491,1734102639233,-500.0,0.00028493,7]
[345227492,1734102639242,-500.0,0.00028493,7]
[345227493,1734102639251,-1028.49,0.00028493,7]
[345227494,1734102639260,-500.0,0.00028493,7]
[345227495,1734102639269,-266.9469162,0.00028493,7]
[345227496,1734102639279,-151.0,0.000286,15]
[345227497,1734102639287,-160.65876305,0.00028766,10]
[345227498,1734102639297,-500.0,0.00028767,7]
[345227499,1734102639306,-439.01829424,0.00028767,7]
[345227500,1734102639315,-211.56208594,0.00028767,7]
[345227501,1734102639324,-500.0,0.00028767,7]
[345227502,1734102639333,-500.0,0.00028767,7]
[345227503,1734102639342,-500.0,0.00028767,7]
[345227504,1734102639353,-500.0,0.00028767,7]
[345227505,1734102639362,-500.0,0.00028767,7]
[345227506,1734102639372,-541.89,0.00028767,7]
[345227507,1734102639382,-151.0,0.00028767,7]
[345227508,1734102639391,-151.0,0.00028767,7]
[345227509,1734102639401,-500.0,0.00028767,7]
[345227510,1734102639411,-633.2,0.00028767,7]
[345227511,1734102639420,-500.0,0.00028767,7]
[345227512,1734102639429,-500.0,0.00028767,7]
[345227513,1734102639438,-500.0,0.00028767,7]
[345227514,1734102639447,-500.0,0.00028767,7]
[345227515,1734102639457,-2273.9,0.00028767,7]
[345227516,1734102639466,-500.0,0.00028767,7]
[345227517,1734102639477,-500.0,0.00028767,7]
[345227518,1734102639486,-500.0,0.00028767,7]
[345227519,1734102639496,-810.48,0.00028767,7]
[345227520,1734102639505,-500.0,0.00028767,7]
[345227521,1734102639515,-500.0,0.00028767,7]
[345227522,1734102639524,-500.0,0.00028767,7]
[345227523,1734102639533,-544.07,0.00028767,7]
[345227524,1734102639543,-13700.35,0.00028767,5]
[345227525,1734102639552,-500.0,0.00028767,7]
[345227526,1734102639561,-500.0,0.00028767,7]
[345227527,1734102639570,-500.0,0.00028767,7]
[345227528,1734102639579,-500.0,0.00028767,7]
[345227529,1734102639589,-1173.07,0.00028767,7]
[345227530,1734102639598,-500.0,0.00028767,7]
[345227531,1734102639607,-500.0,0.00028767,7]
[345227532,1734102639616,-1200.57,0.00028767,7]
[345227533,1734102639626,-500.0,0.00028767,7]
[345227534,1734102639634,-366.14789656,0.00028767,7]
[345227535,1734102639643,-500.0,0.00028767,7]
[345227536,1734102639653,-500.0,0.00028767,7]
[345227537,1734102639662,-500.0,0.00028767,7]
[345227538,1734102639671,-1435.7,0.00028767,7]
[345227539,1734102639680,-500.0,0.00028767,7]
[345227540,1734102639689,-500.0,0.00028767,7]
[345227541,1734102639698,-500.0,0.00028767,7]
[345227542,1734102639707,-500.0,0.00028767,7]
[345227543,1734102639717,-514.88,0.00028767,7]
[345227544,1734102639729,-500.0,0.00028767,7]
[345227545,1734102639738,-367.80331425,0.00028767,7]
[345227546,1734102639747,-500.0,0.00028767,7]
[345227547,1734102639756,-500.0,0.00028767,7]
[345227548,1734102639764,-992.56,0.00028767,7]
[345227549,1734102639773,-500.0,0.00028767,7]
[345227550,1734102639783,-500.0,0.00028767,7]
[345227551,1734102639792,-1107.88,0.00028767,7]
[345227552,1734102639801,-654.67,0.00028767,7]
[345227553,1734102639811,-500.0,0.00028767,7]
[345227554,1734102639820,-500.0,0.00028767,7]
[345227555,1734102639830,-500.0,0.00028767,7]
[345227556,1734102639839,-500.0,0.00028767,7]
[345227557,1734102639848,-1028.49,0.00028767,7]
[345227558,1734102639857,-151.0,0.000289,14]
[345227559,1734102639866,-302.9394212,0.00029,2]
[345227560,1734102639876,-302.96970909,0.00029,2]
[345227561,1734102639885,-500.0,0.00029041,7]
[345227562,1734102639895,-500.0,0.00029041,7]
[345227563,1734102639904,-500.0,0.00029041,7]
[345227564,1734102639914,-500.0,0.00029041,7]
[345227565,1734102639923,-500.0,0.00029041,7]
[345227566,1734102639933,-500.0,0.00029041,7]
[345227567,1734102639944,-541.89,0.00029041,7]
[345227568,1734102639956,-500.0,0.00029041,7]
[345227569,1734102639966,-633.2,0.00029041,7]
[345227570,1734102639978,-500.0,0.00029041,7]
[345227571,1734102639987,-151.0,0.00029041,7]
[345227572,1734102639997,-500.0,0.00029041,7]
[345227573,1734102640007,-500.0,0.00029041,7]
[345227574,1734102640016,-500.0,0.00029041,7]
[345227575,1734102640028,-2273.9,0.00029041,7]
[345227576,1734102640038,-500.0,0.00029041,7]
[345227577,1734102640048,-500.0,0.00029041,7]
[345227578,1734102640058,-500.0,0.00029041,7]
[345227579,1734102640067,-810.48,0.00029041,7]
[345227580,1734102640077,-500.0,0.00029041,7]
[345227581,1734102640086,-500.0,0.00029041,7]
[345227582,1734102640096,-500.0,0.00029041,7]
[345227583,1734102640106,-544.07,0.00029041,7]
[345227585,1734102640116,-13700.35,0.00029041,5]
[345227586,1734102640126,-500.0,0.00029041,7]
[345227587,1734102640135,-500.0,0.00029041,7]
[345227588,1734102640145,-500.0,0.00029041,7]
[345227589,1734102640154,-293.803158,0.00029041,7]
[345227590,1734102640163,-293.803158,0.00029041,7]
[345227591,1734102640173,-500.0,0.00029041,7]
[345227592,1734102640182,-1173.07,0.00029041,7]
[345227593,1734102640192,-500.0,0.00029041,7]
[345227594,1734102640201,-500.0,0.00029041,7]
[345227595,1734102640211,-1200.57,0.00029041,7]
[345227596,1734102640223,-500.0,0.00029041,7]
[345227597,1734102640232,-500.0,0.00029041,7]
[345227598,1734102640242,-500.0,0.00029041,7]
[345227599,1734102640251,-500.0,0.00029041,7]
[345227600,1734102640261,-1435.7,0.00029041,7]
[345227602,1734102640271,-500.0,0.00029041,7]
[345227603,1734102640280,-500.0,0.00029041,7]
[345227605,1734102640289,-469.78852597,0.00029041,7]
[345227607,1734102640298,-500.0,0.00029041,7]
[345227609,1734102640307,-514.88,0.00029041,7]
[345227611,1734102640316,-500.0,0.00029041,7]
[345227613,1734102640326,-295.148161,0.00029041,7]
[345227615,1734102640335,-500.0,0.00029041,7]
[345227617,1734102640345,-500.0,0.00029041,7]
[345227618,1734102640354,-992.56,0.00029041,7]
[345227619,1734102640364,-358.50427301,0.00029041,7]
[345227620,1734102640374,-500.0,0.00029041,7]
[345227621,1734102640384,-1107.88,0.00029041,7]
[345227622,1734102640394,-654.67,0.00029041,7]
[345227623,1734102640403,-500.0,0.00029041,7]
[345227624,1734102640414,-500.0,0.00029041,7]
[345227625,1734102640423,-500.0,0.00029041,7]
[345227626,1734102640433,-500.0,0.00029041,7]
[345227627,1734102640443,-1028.49,0.00029041,7]
[345227628,1734102640454,-500.0,0.00029044,5]
[345227629,1734102640464,-151.0,0.000291,14]
[345227630,1734102640475,-346.17089253,0.00029215,2]
[345227631,1734102640485,-302.9394212,0.0002929,2]
[345227632,1734102640495,-302.96970909,0.0002929,2]
[345227633,1734102640505,-500.0,0.00029315,7]
[345227634,1734102640515,-500.0,0.00029315,7]
[345227635,1734102640524,-500.0,0.00029315,7]
[345227636,1734102640534,-500.0,0.00029315,7]
[345227637,1734102640545,-500.0,0.00029315,7]
[345227639,1734102640555,-500.0,0.00029315,7]
[345227641,1734102640565,-541.89,0.00029315,7]
[345227643,1734102640574,-154.200618,0.00029315,7]
[345227644,1734102640584,-163.391746,0.00029315,7]
[345227646,1734102640593,-500.0,0.00029315,7]
[345227647,1734102640602,-633.2,0.00029315,7]
[345227648,1734102640612,-500.0,0.00029315,7]
[345227649,1734102640621,-500.0,0.00029315,7]
[345227650,1734102640630,-500.0,0.00029315,7]
[345227651,1734102640640,-500.0,0.00029315,7]
[345227652,1734102640649,-2273.9,0.00029315,7]
[345227654,1734102640659,-500.0,0.00029315,7]
[345227655,1734102640668,-500.0,0.00029315,7]